[Event "Early-Titled-Tuesday-Blitz-June-18-2024"]
[Site "Chess.com"]
[Date "2024.06.18"]
[Round "4"]
[White "Shield12"]
[Black "InitiatingASC"]
[Result "1-0"]
[WhiteElo "2881"]
[BlackElo "2439"]
[TimeControl "180+1"]
[EndTime "8:38:35 PDT"]
[Termination "Shield12 won by checkmate"]

1. d4 {[%clk 0:03:00.9]} 1... d5 {[%clk 0:02:47]} 2. c4 {[%clk 0:03:01.7]} 2...
e6 {[%clk 0:02:46.5]} 3. Nf3 {[%clk 0:03:01.5]} 3... a6 {[%clk 0:02:45.4]} 4.
Nc3 {[%clk 0:03:01.3]} 4... Nf6 {[%clk 0:02:41.5]} 5. cxd5 {[%clk 0:03:00]} 5...
exd5 {[%clk 0:02:41.3]} 6. Bf4 {[%clk 0:03:00.2]} 6... Be7 {[%clk 0:02:37.7]} 7.
e3 {[%clk 0:02:59.1]} 7... Nbd7 {[%clk 0:02:34]} 8. h3 {[%clk 0:02:58.8]} 8...
Nf8 {[%clk 0:02:34]} 9. Bd3 {[%clk 0:02:58.4]} 9... Ne6 {[%clk 0:02:33.2]} 10.
Bh2 {[%clk 0:02:58.4]} 10... O-O {[%clk 0:02:24.7]} 11. O-O {[%clk 0:02:57.1]}
11... g6 {[%clk 0:02:24.7]} 12. Ne5 {[%clk 0:02:54.3]} 12... Ng7 {[%clk
0:02:21.1]} 13. g4 {[%clk 0:02:53]} 13... h5 {[%clk 0:02:13.4]} 14. Qf3 {[%clk
0:02:51.2]} 14... c6 {[%clk 0:02:03.9]} 15. Bg3 {[%clk 0:02:49]} 15... Be6
{[%clk 0:01:52.8]} 16. Ne2 {[%clk 0:02:47.2]} 16... Qc8 {[%clk 0:01:45.6]} 17.
g5 {[%clk 0:02:38.6]} 17... Nd7 {[%clk 0:01:38.9]} 18. h4 {[%clk 0:02:37.4]}
18... Nxe5 {[%clk 0:01:36.2]} 19. Bxe5 {[%clk 0:02:38.3]} 19... Bg4 {[%clk
0:01:31.9]} 20. Qg3 {[%clk 0:02:37.3]} 20... Bf5 {[%clk 0:01:19.4]} 21. Bxg7
{[%clk 0:02:34.5]} 21... Bxd3 {[%clk 0:01:11.3]} 22. Bxf8 {[%clk 0:02:34.1]}
22... Bxf8 {[%clk 0:01:09.8]} 23. Rfe1 {[%clk 0:02:31.1]} 23... Qd7 {[%clk
0:01:04]} 24. Nf4 {[%clk 0:02:27.5]} 24... Bd6 {[%clk 0:01:01.4]} 25. a3 {[%clk
0:02:18.1]} 25... Re8 {[%clk 0:01:00]} 26. Rad1 {[%clk 0:02:15.4]} 26... Bf5
{[%clk 0:00:59.9]} 27. f3 {[%clk 0:02:15.1]} 27... Qc7 {[%clk 0:00:57.4]} 28.
Qf2 {[%clk 0:02:14]} 28... Rxe3 {[%clk 0:00:53.3]} 29. Qxe3 {[%clk 0:02:09.1]}
29... Bxf4 {[%clk 0:00:53.4]} 30. Qe8+ {[%clk 0:02:09.6]} 30... Kg7 {[%clk
0:00:53.7]} 31. Re7 {[%clk 0:02:10.5]} 31... Bh2+ {[%clk 0:00:43]} 32. Kh1
{[%clk 0:02:08.6]} 32... Qg3 {[%clk 0:00:37.3]} 33. Rxf7# {[%clk 0:02:07.9]} 1-0

[Event "Early-Titled-Tuesday-Blitz-June-18-2024"]
[Site "Chess.com"]
[Date "2024.06.18"]
[Round "4"]
[White "AjedrezInteligente"]
[Black "Yan_Dyomin2010"]
[Result "0-1"]
[WhiteElo "2419"]
[BlackElo "2646"]
[TimeControl "180+1"]
[EndTime "8:38:42 PDT"]
[Termination "Yan_Dyomin2010 won by checkmate"]

1. e4 {[%clk 0:03:00.9]} 1... c5 {[%clk 0:03:00.3]} 2. c3 {[%clk 0:03:00.4]}
2... Nf6 {[%clk 0:03:00.1]} 3. e5 {[%clk 0:03:00.7]} 3... Nd5 {[%clk 0:03:00.8]}
4. d4 {[%clk 0:03:01.3]} 4... cxd4 {[%clk 0:03:01.7]} 5. Nf3 {[%clk 0:03:02]}
5... Nc6 {[%clk 0:03:01.9]} 6. cxd4 {[%clk 0:03:02.7]} 6... d6 {[%clk
0:03:01.8]} 7. Bc4 {[%clk 0:03:03.3]} 7... Nb6 {[%clk 0:03:01.6]} 8. Bb5 {[%clk
0:03:03.8]} 8... Bd7 {[%clk 0:03:01.8]} 9. O-O {[%clk 0:02:59.4]} 9... e6 {[%clk
0:03:01.7]} 10. Nc3 {[%clk 0:02:58.5]} 10... Be7 {[%clk 0:03:01.1]} 11. exd6
{[%clk 0:02:53.7]} 11... Bxd6 {[%clk 0:03:00.9]} 12. d5 {[%clk 0:02:54.4]} 12...
exd5 {[%clk 0:03:00.5]} 13. Nxd5 {[%clk 0:02:54.1]} 13... Be6 {[%clk 0:02:51.7]}
14. Nxb6 {[%clk 0:02:26.6]} 14... axb6 {[%clk 0:02:51.3]} 15. Nd4 {[%clk
0:02:27.1]} 15... O-O {[%clk 0:02:32.1]} 16. Nxe6 {[%clk 0:02:08.1]} 16... fxe6
{[%clk 0:02:31.8]} 17. Bc4 {[%clk 0:02:08.8]} 17... Bxh2+ {[%clk 0:02:28.9]} 18.
Kh1 {[%clk 0:01:42.1]} 18... Qf6 {[%clk 0:02:16.7]} 19. Qg4 {[%clk 0:01:29.1]}
19... Be5 {[%clk 0:01:48.6]} 20. Bg5 {[%clk 0:01:11.4]} 20... Qg6 {[%clk
0:01:41.4]} 21. Qxe6+ {[%clk 0:01:10.8]} 21... Qxe6 {[%clk 0:01:41.8]} 22. Bxe6+
{[%clk 0:01:11.7]} 22... Kh8 {[%clk 0:01:42.6]} 23. Rab1 {[%clk 0:01:04.9]}
23... Bd4 {[%clk 0:01:36.6]} 24. f3 {[%clk 0:00:59.9]} 24... h6 {[%clk 0:01:36]}
25. Bd2 {[%clk 0:00:57.9]} 25... Rfe8 {[%clk 0:01:35.6]} 26. Bd5 {[%clk
0:00:57.2]} 26... Rad8 {[%clk 0:01:36.1]} 27. Be4 {[%clk 0:00:57]} 27... Re5
{[%clk 0:01:33.6]} 28. Bc3 {[%clk 0:00:54.4]} 28... Rh5# {[%clk 0:01:33]} 0-1

[Event "Early-Titled-Tuesday-Blitz-June-18-2024"]
[Site "Chess.com"]
[Date "2024.06.18"]
[Round "4"]
[White "Durarbayli"]
[Black "suyu28"]
[Result "1-0"]
[WhiteElo "2947"]
[BlackElo "2769"]
[TimeControl "180+1"]
[EndTime "8:38:47 PDT"]
[Termination "Durarbayli won by resignation"]

1. e4 {[%clk 0:03:00.9]} 1... c6 {[%clk 0:03:00]} 2. d4 {[%clk 0:03:00.8]} 2...
d5 {[%clk 0:03:00.2]} 3. exd5 {[%clk 0:03:01.7]} 3... cxd5 {[%clk 0:03:00]} 4.
c4 {[%clk 0:03:02.6]} 4... Nf6 {[%clk 0:02:59.3]} 5. Nc3 {[%clk 0:03:03.1]} 5...
Nc6 {[%clk 0:02:56.9]} 6. Nf3 {[%clk 0:03:03.6]} 6... Bg4 {[%clk 0:02:49.5]} 7.
cxd5 {[%clk 0:03:03.7]} 7... Nxd5 {[%clk 0:02:48.8]} 8. Qb3 {[%clk 0:03:04.3]}
8... Bxf3 {[%clk 0:02:40.3]} 9. gxf3 {[%clk 0:03:05.2]} 9... e6 {[%clk
0:02:18.7]} 10. Qxb7 {[%clk 0:03:03.7]} 10... Nxd4 {[%clk 0:02:18.7]} 11. Bb5+
{[%clk 0:03:04]} 11... Nxb5 {[%clk 0:02:18.1]} 12. Qc6+ {[%clk 0:03:04.5]} 12...
Ke7 {[%clk 0:02:18.5]} 13. Qc5+ {[%clk 0:03:05]} 13... Nd6 {[%clk 0:02:15.5]}
14. Nxd5+ {[%clk 0:03:04.5]} 14... exd5 {[%clk 0:02:16.4]} 15. O-O {[%clk
0:03:04.1]} 15... Rc8 {[%clk 0:02:03.2]} 16. Qxd5 {[%clk 0:02:50.1]} 16... Kd7
{[%clk 0:02:01.9]} 17. Rd1 {[%clk 0:02:10.4]} 17... Qf6 {[%clk 0:01:51.4]} 18.
Bg5 {[%clk 0:02:05.4]} 18... Qe6 {[%clk 0:00:27.2]} 19. Qb5+ {[%clk 0:02:01.6]}
19... Rc6 {[%clk 0:00:14.2]} 20. Rac1 {[%clk 0:02:01.9]} 1-0

[Event "Early-Titled-Tuesday-Blitz-June-18-2024"]
[Site "Chess.com"]
[Date "2024.06.18"]
[Round "4"]
[White "KanalSzachowy"]
[Black "Slovineanu"]
[Result "0-1"]
[WhiteElo "2363"]
[BlackElo "2546"]
[TimeControl "180+1"]
[EndTime "8:38:47 PDT"]
[Termination "Slovineanu won by resignation"]

1. e4 {[%clk 0:03:00.9]} 1... c6 {[%clk 0:02:59.8]} 2. d4 {[%clk 0:02:58.5]}
2... d5 {[%clk 0:03:00.3]} 3. f3 {[%clk 0:02:58.9]} 3... dxe4 {[%clk 0:03:00.2]}
4. fxe4 {[%clk 0:02:58.9]} 4... e5 {[%clk 0:03:00.8]} 5. Nf3 {[%clk 0:02:58.8]}
5... Be6 {[%clk 0:03:00.4]} 6. c3 {[%clk 0:02:57.7]} 6... Nd7 {[%clk 0:03:00.4]}
7. Bd3 {[%clk 0:02:57.9]} 7... Bd6 {[%clk 0:03:00.3]} 8. O-O {[%clk 0:02:58.2]}
8... Ngf6 {[%clk 0:03:00.9]} 9. Bg5 {[%clk 0:02:57.3]} 9... h6 {[%clk
0:02:46.8]} 10. Bh4 {[%clk 0:02:56.8]} 10... Qc7 {[%clk 0:02:41.4]} 11. Nbd2
{[%clk 0:02:51]} 11... O-O {[%clk 0:02:40.4]} 12. Bc2 {[%clk 0:02:38.4]} 12...
b5 {[%clk 0:02:37.9]} 13. Qe1 {[%clk 0:02:27.8]} 13... Rfe8 {[%clk 0:02:29.6]}
14. Nxe5 {[%clk 0:02:26.2]} 14... Bxe5 {[%clk 0:02:27.4]} 15. dxe5 {[%clk
0:02:25.3]} 15... Qxe5 {[%clk 0:02:26.3]} 16. Nf3 {[%clk 0:02:23.5]} 16... Qh5
{[%clk 0:02:22]} 17. e5 {[%clk 0:02:15.7]} 17... Ng4 {[%clk 0:02:15.2]} 18. Qe4
{[%clk 0:02:11.9]} 18... g6 {[%clk 0:02:00.7]} 19. Qxc6 {[%clk 0:01:25]} 19...
Ndxe5 {[%clk 0:01:59.3]} 20. Nxe5 {[%clk 0:01:12.5]} 20... Nxe5 {[%clk
0:01:58.7]} 21. Qxb5 {[%clk 0:01:07.3]} 21... Bc4 {[%clk 0:01:51.9]} 22. Qa5
{[%clk 0:00:38]} 22... Bxf1 {[%clk 0:01:47.3]} 23. Rxf1 {[%clk 0:00:34.5]} 23...
Qxh4 {[%clk 0:01:44.1]} 24. Qxe5 {[%clk 0:00:33.6]} 0-1

[Event "Early-Titled-Tuesday-Blitz-June-18-2024"]
[Site "Chess.com"]
[Date "2024.06.18"]
[Round "4"]
[White "mfschulz"]
[Black "AwareIdea"]
[Result "1-0"]
[WhiteElo "2242"]
[BlackElo "2500"]
[TimeControl "180+1"]
[EndTime "8:38:48 PDT"]
[Termination "mfschulz won by resignation"]

1. d4 {[%clk 0:02:57.9]} 1... Nf6 {[%clk 0:02:58.5]} 2. Bg5 {[%clk 0:02:57.7]}
2... c5 {[%clk 0:02:57.9]} 3. d5 {[%clk 0:02:54.1]} 3... e5 {[%clk 0:02:49.7]}
4. c4 {[%clk 0:02:48.7]} 4... d6 {[%clk 0:02:47.2]} 5. Nc3 {[%clk 0:02:48.4]}
5... a6 {[%clk 0:02:41.4]} 6. a4 {[%clk 0:02:46.6]} 6... a5 {[%clk 0:02:40.6]}
7. g3 {[%clk 0:02:46.4]} 7... Na6 {[%clk 0:02:40.4]} 8. Bg2 {[%clk 0:02:46.2]}
8... Nb4 {[%clk 0:02:40.5]} 9. e4 {[%clk 0:02:41.2]} 9... h6 {[%clk 0:02:39.6]}
10. Bxf6 {[%clk 0:02:39.7]} 10... Qxf6 {[%clk 0:02:40.5]} 11. Nge2 {[%clk
0:02:38]} 11... Bd7 {[%clk 0:02:40.4]} 12. O-O {[%clk 0:02:37.8]} 12... g6
{[%clk 0:02:37.6]} 13. f4 {[%clk 0:02:37.3]} 13... Bg7 {[%clk 0:02:33.4]} 14. f5
{[%clk 0:02:27.7]} 14... O-O {[%clk 0:02:26.7]} 15. g4 {[%clk 0:02:26.2]} 15...
Qg5 {[%clk 0:02:20]} 16. Kh1 {[%clk 0:02:24.7]} 16... Bf6 {[%clk 0:02:18.3]} 17.
Ng3 {[%clk 0:02:18]} 17... Kg7 {[%clk 0:02:12.1]} 18. Nb5 {[%clk 0:02:17.8]}
18... Bxb5 {[%clk 0:02:11.6]} 19. axb5 {[%clk 0:02:16.4]} 19... Qe3 {[%clk
0:02:07]} 20. Rf3 {[%clk 0:02:11.6]} 20... Qd4 {[%clk 0:02:05.2]} 21. Qe2 {[%clk
0:02:02.5]} 21... a4 {[%clk 0:01:37.2]} 22. Rd1 {[%clk 0:02:02.2]} 22... Rae8
{[%clk 0:01:07.1]} 23. Rxd4 {[%clk 0:02:00.2]} 23... exd4 {[%clk 0:01:08]} 24.
Ra3 {[%clk 0:01:52.4]} 24... Re7 {[%clk 0:01:01.9]} 25. Rxa4 {[%clk 0:01:47.6]}
25... d3 {[%clk 0:01:02.1]} 26. Qf3 {[%clk 0:01:37]} 26... d2 {[%clk 0:00:57.7]}
27. Ra1 {[%clk 0:01:34.5]} 27... Bxb2 {[%clk 0:00:56.9]} 28. Rd1 {[%clk
0:01:33.1]} 28... Bc1 {[%clk 0:00:57.2]} 29. f6+ {[%clk 0:01:31]} 1-0

[Event "Early-Titled-Tuesday-Blitz-June-18-2024"]
[Site "Chess.com"]
[Date "2024.06.18"]
[Round "4"]
[White "DarkAlekhine"]
[Black "Gnechko_Ruslan"]
[Result "1-0"]
[WhiteElo "2742"]
[BlackElo "2544"]
[TimeControl "180+1"]
[EndTime "8:38:51 PDT"]
[Termination "DarkAlekhine won by checkmate"]

1. e4 {[%clk 0:03:00.9]} 1... d6 {[%clk 0:02:56.5]} 2. d4 {[%clk 0:03:00]} 2...
g6 {[%clk 0:02:57.1]} 3. Nf3 {[%clk 0:02:59.2]} 3... Bg7 {[%clk 0:02:57.7]} 4.
c3 {[%clk 0:02:59.9]} 4... Nf6 {[%clk 0:02:56.4]} 5. Bd3 {[%clk 0:02:54.4]} 5...
O-O {[%clk 0:02:56.7]} 6. O-O {[%clk 0:02:54.2]} 6... c5 {[%clk 0:02:57.3]} 7.
h3 {[%clk 0:02:52.6]} 7... Nc6 {[%clk 0:02:56.9]} 8. Re1 {[%clk 0:02:51.1]} 8...
e5 {[%clk 0:02:55.9]} 9. d5 {[%clk 0:02:51]} 9... Ne7 {[%clk 0:02:55.6]} 10.
Nbd2 {[%clk 0:02:41.7]} 10... h6 {[%clk 0:02:56]} 11. b4 {[%clk 0:02:37]} 11...
b6 {[%clk 0:02:51.6]} 12. Bf1 {[%clk 0:02:34.4]} 12... Nh5 {[%clk 0:02:51.4]}
13. g3 {[%clk 0:02:33.8]} 13... f5 {[%clk 0:02:51]} 14. exf5 {[%clk 0:02:29.6]}
14... gxf5 {[%clk 0:02:49.5]} 15. Nh4 {[%clk 0:02:29.7]} 15... Qe8 {[%clk
0:02:39]} 16. Nc4 {[%clk 0:02:29]} 16... Rf6 {[%clk 0:02:31.8]} 17. Be2 {[%clk
0:02:24.9]} 17... Nxg3 {[%clk 0:02:23.7]} 18. fxg3 {[%clk 0:02:24.1]} 18... f4
{[%clk 0:02:24.3]} 19. Bh5 {[%clk 0:02:15.5]} 19... Qb5 {[%clk 0:02:20.5]} 20.
Nd2 {[%clk 0:01:57.1]} 20... fxg3 {[%clk 0:01:35]} 21. Ne4 {[%clk 0:01:55.6]}
21... Rf8 {[%clk 0:01:35.5]} 22. Nxd6 {[%clk 0:01:39.4]} 22... Qd7 {[%clk
0:01:34.5]} 23. Nxc8 {[%clk 0:01:39.2]} 23... Nxc8 {[%clk 0:01:20.6]} 24. Bg4
{[%clk 0:01:32.2]} 24... Qd8 {[%clk 0:01:20.8]} 25. Be6+ {[%clk 0:01:31.3]}
25... Kh8 {[%clk 0:01:13.5]} 26. Ng6+ {[%clk 0:01:30.8]} 26... Kh7 {[%clk
0:01:14.1]} 27. Nxf8+ {[%clk 0:01:29.6]} 27... Qxf8 {[%clk 0:01:13.1]} 28. Qd3+
{[%clk 0:01:29.5]} 28... Kh8 {[%clk 0:01:12.5]} 29. Qxg3 {[%clk 0:01:29.6]}
29... cxb4 {[%clk 0:01:04.8]} 30. Rf1 {[%clk 0:01:25.9]} 30... Qc5+ {[%clk
0:01:04.8]} 31. Be3 {[%clk 0:01:25.9]} 31... Qxc3 {[%clk 0:01:05.1]} 32. Rf8+
{[%clk 0:01:26]} 32... Bxf8 {[%clk 0:01:04.3]} 33. Qg8# {[%clk 0:01:26.5]} 1-0

[Event "Early-Titled-Tuesday-Blitz-June-18-2024"]
[Site "Chess.com"]
[Date "2024.06.18"]
[Round "4"]
[White "PattyCastillo"]
[Black "giovannibrandao7"]
[Result "0-1"]
[WhiteElo "1897"]
[BlackElo "2295"]
[TimeControl "180+1"]
[EndTime "8:38:51 PDT"]
[Termination "giovannibrandao7 won by resignation"]

1. d4 {[%clk 0:02:58.9]} 1... Nf6 {[%clk 0:03:00]} 2. Nf3 {[%clk 0:02:54.8]}
2... g6 {[%clk 0:02:57]} 3. Nc3 {[%clk 0:02:54.6]} 3... Bg7 {[%clk 0:02:48.6]}
4. e4 {[%clk 0:02:50.5]} 4... d6 {[%clk 0:02:48.9]} 5. Be3 {[%clk 0:02:50]} 5...
Nbd7 {[%clk 0:02:47.8]} 6. Qd2 {[%clk 0:02:49.9]} 6... c6 {[%clk 0:02:43.5]} 7.
O-O-O {[%clk 0:02:47.9]} 7... O-O {[%clk 0:02:43.1]} 8. h4 {[%clk 0:02:48.1]}
8... h5 {[%clk 0:02:39.9]} 9. e5 {[%clk 0:02:35.7]} 9... Ng4 {[%clk 0:02:35.8]}
10. Bf4 {[%clk 0:02:24.8]} 10... dxe5 {[%clk 0:02:12]} 11. dxe5 {[%clk
0:02:22.8]} 11... Qa5 {[%clk 0:02:09.6]} 12. Bc4 {[%clk 0:01:57.6]} 12... Ndxe5
{[%clk 0:01:29.1]} 13. Nxe5 {[%clk 0:01:56]} 13... Nxe5 {[%clk 0:01:28.3]} 14.
Bb3 {[%clk 0:01:53.2]} 14... Bf5 {[%clk 0:01:13.1]} 15. Bh6 {[%clk 0:01:45.2]}
15... Rad8 {[%clk 0:00:54.5]} 16. Qe3 {[%clk 0:01:42]} 16... Ng4 {[%clk
0:00:51.7]} 0-1

[Event "Early-Titled-Tuesday-Blitz-June-18-2024"]
[Site "Chess.com"]
[Date "2024.06.18"]
[Round "4"]
[White "rasmussvane"]
[Black "becemix"]
[Result "1-0"]
[WhiteElo "2968"]
[BlackElo "2623"]
[TimeControl "180+1"]
[EndTime "8:39:00 PDT"]
[Termination "rasmussvane won by resignation"]

1. Nf3 {[%clk 0:02:59.6]} 1... d5 {[%clk 0:02:59.2]} 2. g3 {[%clk 0:02:59.9]}
2... Bg4 {[%clk 0:02:58]} 3. Bg2 {[%clk 0:02:59.8]} 3... Nd7 {[%clk 0:02:57.7]}
4. O-O {[%clk 0:02:59.2]} 4... Ngf6 {[%clk 0:02:56.4]} 5. h3 {[%clk 0:02:45.6]}
5... Bh5 {[%clk 0:02:55.2]} 6. d4 {[%clk 0:02:44.8]} 6... c6 {[%clk 0:02:50.8]}
7. c4 {[%clk 0:02:45]} 7... e6 {[%clk 0:02:49.5]} 8. cxd5 {[%clk 0:02:45.4]}
8... exd5 {[%clk 0:02:48.9]} 9. Ne5 {[%clk 0:02:45.7]} 9... Nxe5 {[%clk
0:02:23.1]} 10. dxe5 {[%clk 0:02:46.6]} 10... Nd7 {[%clk 0:02:23.4]} 11. Nc3
{[%clk 0:02:44.8]} 11... Nxe5 {[%clk 0:02:07.2]} 12. g4 {[%clk 0:02:44.6]} 12...
Bxg4 {[%clk 0:02:06.7]} 13. hxg4 {[%clk 0:02:44.9]} 13... Nxg4 {[%clk
0:02:06.8]} 14. Bf4 {[%clk 0:02:09.9]} 14... Bd6 {[%clk 0:02:04.6]} 15. Qd4
{[%clk 0:02:03.6]} 15... Nf6 {[%clk 0:01:51.4]} 16. Bxd6 {[%clk 0:01:51]} 16...
Qxd6 {[%clk 0:01:52.3]} 17. e4 {[%clk 0:01:51.5]} 17... Qf4 {[%clk 0:01:35.2]}
18. Rad1 {[%clk 0:01:23.8]} 18... Ng4 {[%clk 0:00:54.2]} 19. Rfe1 {[%clk
0:01:23.9]} 19... O-O {[%clk 0:00:53.4]} 20. exd5 {[%clk 0:01:23.8]} 20... Qh2+
{[%clk 0:00:47]} 21. Kf1 {[%clk 0:01:24]} 21... h5 {[%clk 0:00:46.9]} 22. d6
{[%clk 0:01:17.3]} 1-0

[Event "Early-Titled-Tuesday-Blitz-June-18-2024"]
[Site "Chess.com"]
[Date "2024.06.18"]
[Round "4"]
[White "margarita_2703"]
[Black "AmbartsumianTyhran2012"]
[Result "0-1"]
[WhiteElo "2222"]
[BlackElo "2515"]
[TimeControl "180+1"]
[EndTime "8:39:08 PDT"]
[Termination "AmbartsumianTyhran2012 won by resignation"]

1. e4 {[%clk 0:03:00.9]} 1... d5 {[%clk 0:02:59.4]} 2. exd5 {[%clk 0:02:58.5]}
2... Qxd5 {[%clk 0:03:00]} 3. Nc3 {[%clk 0:02:29.8]} 3... Qe5+ {[%clk
0:02:57.8]} 4. Be2 {[%clk 0:02:28.4]} 4... Bg4 {[%clk 0:02:55.7]} 5. d4 {[%clk
0:02:29.3]} 5... Bxe2 {[%clk 0:02:53.9]} 6. Ngxe2 {[%clk 0:02:30.2]} 6... Qa5
{[%clk 0:02:52.9]} 7. b4 {[%clk 0:02:31.1]} 7... Qh5 {[%clk 0:02:52.1]} 8. O-O
{[%clk 0:02:30.7]} 8... Nf6 {[%clk 0:02:48.5]} 9. Bf4 {[%clk 0:02:30.4]} 9... c6
{[%clk 0:02:45.4]} 10. b5 {[%clk 0:02:29.6]} 10... e6 {[%clk 0:02:43.6]} 11. Rb1
{[%clk 0:02:27.9]} 11... b6 {[%clk 0:02:39.6]} 12. a4 {[%clk 0:02:16.5]} 12...
Nd5 {[%clk 0:02:30.2]} 13. Nxd5 {[%clk 0:02:15.3]} 13... cxd5 {[%clk 0:02:31.1]}
14. Qd3 {[%clk 0:02:13.2]} 14... Nd7 {[%clk 0:02:29.4]} 15. Ng3 {[%clk
0:02:12.8]} 15... Qg4 {[%clk 0:02:27.6]} 16. Bd2 {[%clk 0:02:11.2]} 16... Bd6
{[%clk 0:02:27.1]} 17. c3 {[%clk 0:02:08]} 17... O-O {[%clk 0:02:25.9]} 18. Rfe1
{[%clk 0:02:05.7]} 18... Qg6 {[%clk 0:02:24.3]} 19. Qxg6 {[%clk 0:02:03.2]}
19... hxg6 {[%clk 0:02:23.5]} 20. Kf1 {[%clk 0:02:04.1]} 20... Rfc8 {[%clk
0:02:22.6]} 21. Ra1 {[%clk 0:02:03.4]} 21... Nf6 {[%clk 0:02:17.1]} 22. Ke2
{[%clk 0:02:03]} 22... Bxg3 {[%clk 0:02:14.4]} 23. hxg3 {[%clk 0:02:02.6]} 23...
Ne4 {[%clk 0:02:14.7]} 24. Rec1 {[%clk 0:02:02.5]} 24... Nd6 {[%clk 0:02:08.6]}
25. f3 {[%clk 0:02:02.2]} 25... Rc4 {[%clk 0:02:08]} 26. Bf4 {[%clk 0:02:01.7]}
26... Nb7 {[%clk 0:02:06.5]} 27. Kd3 {[%clk 0:02:00.5]} 27... Rac8 {[%clk
0:02:05.5]} 28. Ra3 {[%clk 0:02:01]} 28... f6 {[%clk 0:02:04.5]} 29. g4 {[%clk
0:02:00.7]} 29... Kf7 {[%clk 0:02:04.5]} 30. Rh1 {[%clk 0:01:59]} 30... g5
{[%clk 0:02:03.4]} 31. Bg3 {[%clk 0:01:57.4]} 31... Re8 {[%clk 0:01:53.3]} 32.
Rh3 {[%clk 0:01:50.4]} 32... e5 {[%clk 0:01:50.6]} 33. Bf2 {[%clk 0:01:49.3]}
33... Nd6 {[%clk 0:01:34.5]} 34. Be3 {[%clk 0:01:37.9]} 34... e4+ {[%clk
0:01:23.4]} 35. Kd2 {[%clk 0:01:25.6]} 35... Rxd4+ {[%clk 0:01:04.5]} 0-1

[Event "Early-Titled-Tuesday-Blitz-June-18-2024"]
[Site "Chess.com"]
[Date "2024.06.18"]
[Round "4"]
[White "Goryachkina"]
[Black "Rdeux42"]
[Result "1-0"]
[WhiteElo "2668"]
[BlackElo "2424"]
[TimeControl "180+1"]
[EndTime "8:39:09 PDT"]
[Termination "Goryachkina won by resignation"]

1. e4 {[%clk 0:03:00.2]} 1... c5 {[%clk 0:02:59.5]} 2. Nf3 {[%clk 0:03:00.1]}
2... d6 {[%clk 0:02:58.6]} 3. d4 {[%clk 0:02:57.8]} 3... cxd4 {[%clk 0:02:59.5]}
4. Nxd4 {[%clk 0:02:58.1]} 4... Nf6 {[%clk 0:03:00.4]} 5. Nc3 {[%clk 0:02:58]}
5... a6 {[%clk 0:03:00.7]} 6. a4 {[%clk 0:02:57.2]} 6... e5 {[%clk 0:02:59.9]}
7. Nf3 {[%clk 0:02:56.4]} 7... Qc7 {[%clk 0:02:59.5]} 8. Be2 {[%clk 0:02:48.2]}
8... Be6 {[%clk 0:02:58.7]} 9. O-O {[%clk 0:02:45.2]} 9... Be7 {[%clk
0:02:57.1]} 10. Bg5 {[%clk 0:02:35.2]} 10... Nbd7 {[%clk 0:02:56.2]} 11. a5
{[%clk 0:02:23.2]} 11... h6 {[%clk 0:02:50.7]} 12. Be3 {[%clk 0:02:18.3]} 12...
O-O {[%clk 0:02:46.7]} 13. h3 {[%clk 0:02:18.3]} 13... Rac8 {[%clk 0:02:43.8]}
14. Re1 {[%clk 0:02:10.5]} 14... Rfd8 {[%clk 0:02:37.8]} 15. Nd2 {[%clk
0:01:50]} 15... d5 {[%clk 0:02:33.9]} 16. exd5 {[%clk 0:01:48.1]} 16... Nxd5
{[%clk 0:02:34.8]} 17. Nxd5 {[%clk 0:01:47.7]} 17... Bxd5 {[%clk 0:02:35.2]} 18.
Bd3 {[%clk 0:01:42.9]} 18... Nc5 {[%clk 0:02:18.9]} 19. Bf5 {[%clk 0:01:28.5]}
19... Be6 {[%clk 0:01:50.3]} 20. Bxe6 {[%clk 0:01:28.4]} 20... Nxe6 {[%clk
0:01:49.7]} 21. Bb6 {[%clk 0:01:27.9]} 21... Qxc2 {[%clk 0:01:46.5]} 22. Bxd8
{[%clk 0:01:27.4]} 22... Qxd1 {[%clk 0:01:41.8]} 23. Raxd1 {[%clk 0:01:24.7]}
23... Rxd8 {[%clk 0:01:41.4]} 24. Nf3 {[%clk 0:01:24.1]} 24... Rxd1 {[%clk
0:01:24.8]} 25. Rxd1 {[%clk 0:01:25]} 25... e4 {[%clk 0:01:23.2]} 26. Ne5 {[%clk
0:01:20]} 26... Nc5 {[%clk 0:01:20]} 27. Rd5 {[%clk 0:01:10.5]} 27... Nd3 {[%clk
0:01:17.2]} 28. Nxd3 {[%clk 0:01:06.7]} 28... exd3 {[%clk 0:01:17.6]} 29. Rxd3
{[%clk 0:01:06.9]} 29... Bb4 {[%clk 0:01:18.1]} 30. Rd8+ {[%clk 0:01:05.2]}
30... Kh7 {[%clk 0:01:17.5]} 31. Rd7 {[%clk 0:01:05.4]} 31... Bxa5 {[%clk
0:01:15.4]} 32. Rxf7 {[%clk 0:01:01.4]} 1-0

[Event "Early-Titled-Tuesday-Blitz-June-18-2024"]
[Site "Chess.com"]
[Date "2024.06.18"]
[Round "4"]
[White "aa175"]
[Black "amintabatabaei"]
[Result "1-0"]
[WhiteElo "2855"]
[BlackElo "3046"]
[TimeControl "180+1"]
[EndTime "8:39:10 PDT"]
[Termination "aa175 won by resignation"]

1. d4 {[%clk 0:03:00.9]} 1... e6 {[%clk 0:02:59]} 2. Bf4 {[%clk 0:02:56.1]} 2...
Nf6 {[%clk 0:02:58]} 3. e3 {[%clk 0:02:56.5]} 3... d5 {[%clk 0:02:58.2]} 4. Nf3
{[%clk 0:02:56.9]} 4... Bd6 {[%clk 0:02:58.9]} 5. Nbd2 {[%clk 0:02:55.8]} 5...
O-O {[%clk 0:02:57.7]} 6. Bd3 {[%clk 0:02:55.9]} 6... Bxf4 {[%clk 0:02:57.7]} 7.
exf4 {[%clk 0:02:56.2]} 7... b6 {[%clk 0:02:58.5]} 8. h4 {[%clk 0:02:53.8]} 8...
Ba6 {[%clk 0:02:58]} 9. Bxa6 {[%clk 0:02:52.2]} 9... Nxa6 {[%clk 0:02:58.9]} 10.
h5 {[%clk 0:02:52.9]} 10... h6 {[%clk 0:02:58.9]} 11. Ne5 {[%clk 0:02:51.3]}
11... c5 {[%clk 0:02:58.6]} 12. g4 {[%clk 0:02:51.8]} 12... Nd7 {[%clk
0:02:53.5]} 13. g5 {[%clk 0:02:50.3]} 13... Nxe5 {[%clk 0:02:49.4]} 14. dxe5
{[%clk 0:02:49.4]} 14... hxg5 {[%clk 0:02:49.4]} 15. Qg4 {[%clk 0:02:46.9]}
15... f5 {[%clk 0:02:43]} 16. exf6 {[%clk 0:02:31.1]} 16... Qxf6 {[%clk
0:02:43.1]} 17. O-O-O {[%clk 0:02:31.8]} 17... Qf5 {[%clk 0:02:19]} 18. Qe2
{[%clk 0:02:24.2]} 18... gxf4 {[%clk 0:02:17.5]} 19. Qxa6 {[%clk 0:02:24.1]}
19... e5 {[%clk 0:02:10.7]} 20. h6 {[%clk 0:02:07.6]} 20... g5 {[%clk
0:02:02.5]} 21. Nf3 {[%clk 0:01:51.6]} 21... e4 {[%clk 0:02:02.4]} 22. Nxg5
{[%clk 0:01:45.2]} 22... Kh8 {[%clk 0:02:02.5]} 23. Qb7 {[%clk 0:01:39.7]} 23...
Qxg5 {[%clk 0:01:59.8]} 24. Rdg1 {[%clk 0:01:40.3]} 24... Rfb8 {[%clk
0:01:37.1]} 25. Qxb8+ {[%clk 0:01:25.3]} 25... Rxb8 {[%clk 0:01:38]} 26. Rxg5
{[%clk 0:01:25.4]} 26... d4 {[%clk 0:01:38.8]} 27. h7 {[%clk 0:01:10]} 27... f3
{[%clk 0:01:30.8]} 28. Rhg1 {[%clk 0:01:05.4]} 28... Rb7 {[%clk 0:01:31.4]} 29.
Re5 {[%clk 0:00:52.1]} 29... e3 {[%clk 0:01:28.8]} 30. fxe3 {[%clk 0:00:51.4]}
30... f2 {[%clk 0:01:20.6]} 31. Rf1 {[%clk 0:00:51.4]} 31... Rg7 {[%clk
0:01:21.5]} 32. Rxf2 {[%clk 0:00:50.8]} 32... dxe3 {[%clk 0:01:19.7]} 33. Rxe3
{[%clk 0:00:50.6]} 1-0